Cogmind - Beta 16 @@@ ROGUE MODE // 2026.02.01 @ 12:35:45 Player: radwan Result: Destroyed by I6-917(R) with Subdweller Machine Gun Performance ------------- Evolutions (0) 0 Regions Visited (2) 400 Robots Destroyed (7) 35 Value Destroyed (280) 280 Prototype IDs (0) 0 Alien Tech Used (0) 0 Bonus (0) 0 TOTAL SCORE: 715 Bonus ------- None Cogmind --------- Core Integrity 0/250 Matter 292/300 Energy 149/150 System Corruption 0% Temperature Cool (0) Movement Treading (260) Ox1 Location -10/Subcaves Parts ------- > --- POWER (1) -------- Light Angular Momentum Engine > --- PROPULSION (2) --- Spiked Treads Myomer Leg > --- UTILITY (2) ------ Scrap Shield > --- WEAPON (2) ------- Subdweller Laser Subdweller Machine Gun > --- INVENTORY (5) ---- Light Angular Momentum Engine Improved Heat Sink Subdweller Machine Gun Scrap Shield Fragment (49) Scrap Shield Fragment (46) Peak State ------------ > --- POWER ------------ Light Angular Momentum Engine > --- PROPULSION ------- Myomer Leg Subdweller Monowheel > --- UTILITY ---------- Scrap Shield > --- WEAPON ----------- Subdweller Laser Subdweller Machine Gun > --- INVENTORY -------- Light Angular Momentum Engine Subdweller Monowheel Disposable Heat Sink Scrap Shield Fragment Scrap Shield Fragment [Rating: 23] Favorites ----------- Power Ion Engine Engine Ion Engine Propulsion Aluminum Leg Treads Spiked Treads Leg Aluminum Leg Wheel Subdweller Monowheel Utility Small Storage Unit Storage Small Storage Unit Processor Targeting Computer Protection Scrap Shield Weapon Light Assault Rifle Energy Gun Subdweller Laser Ballistic Gun Light Assault Rifle Build | -11 -10 -10 ------- Run | Yrd Mat Sub Slots Evolved . | . . . Power . | . . . Propulsion . | . . . Utility . | . . . Weapon . | . . . Parts Attached 21 | 6 2 13 Power 4 | 1 . 3 Engine 4 | 1 . 3 Core . | . . . Reactor . | . . . Propulsion 8 | 2 . 6 Treads 3 | . . 3 Leg 3 | 2 . 1 Wheel 2 | . . 2 Hover . | . . . Flight . | . . . Utility 3 | 1 1 1 Device . | . . . Storage 1 | 1 . . Processor 1 | . 1 . Hackware . | . . . Protection 1 | . . 1 Artifact . | . . . Weapon 6 | 2 1 3 Energy Gun 3 | . 1 2 Energy Cannon . | . . . Ballistic Gun 3 | 2 . 1 Ballistic Cannon . | . . . Launcher . | . . . Special Weapon . | . . . Impact Weapon . | . . . Slashing Weapon . | . . . Piercing Weapon . | . . . Special Melee Weapon . | . . . Unidentified Prototypes . | . . . Parts Lost 10 | . 2 8 Power 2 | . . 2 Propulsion 4 | . 1 3 Utility . | . . . Weapon 4 | . 1 3 Highest Loss Streak 8 | . 2 8 To Critical Strikes 1 | . . 1 Average Backups 3 | 2 3 2 Power . | . 1 . Propulsion . | . 2 . Utility . | . . 1 Weapon . | . . . Tool/Special . | . . . Unused Backups 5 | . . 5 Power 1 | . . 1 Propulsion . | . . . Utility 3 | . . 3 Weapon 1 | . . 1 Tool/Special . | . . . Average Slot Usage (%) 86 | . 98 81 Engine 12 | . 14 11 Treads 7 | . . 10 Leg 16 | . 27 11 Wheel 1 | . . 1 Storage 7 | . 14 4 Processor 6 | . 12 4 Protection 6 | . . 9 Energy Gun 9 | . 1 12 Ballistic Gun 17 | . 26 13 Peak Build Rating 23 | 6 7 23 Average Rating 13 | 4 6 16 On Entrance 4 | . 6 6 Avg Prop Armor Cover (%) 4 | . . 4 Naked Turns . | . . . Heaviest Build 35 | 13 13 35 Greatest Support 40 | 20 20 40 Greatest Overweight (x) 7 | . 1 7 Average Overweight (x) . | . . . Largest Inventory Capacity 8 | 8 8 8 Average Capacity 6 | 6 8 5 Most Carried 8 | 4 5 8 Average Carried 4 | 2 3 5 Final Capacity 8 | 8 8 5 Final Carried 5 | 4 3 5 Class Distribution -------------------- 57% | Mutant 42% | Subdweller-Mutant Dominant Class ---------------- Mutant | -10/Materials Subdweller-Mutant | -10/Subcaves Resources | -11 -10 -10 ----------- Run | Yrd Mat Sub Matter Collected 443 | 257 . 186 Remotely . | . . . Salvage Created 284 | . . 284 Parts 16 | . . 16 Haulers Intercepted . | . . . Recyclers Shooed . | . . . Parts Field Recycled . | . . . Retrieved Matter . | . . . Parts Self-Destructed . | . . . Prevented . | . . . Parts Restored . | . . . Kills | -11 -10 -10 ------- Run | Yrd Mat Sub Combat Hostiles Destroyed 7 | . . 7 Guns 7 | . . 7 Classes Destroyed 1 | . . 1 Subdweller 7 | . . 7 Best Kill Streak 4 | . . 4 Combat Bots Only 4 | . . 4 Max Kills in Single Turn 1 | . . 1 Gunslinging . | . . . Exploded . | . . . Melee . | . . . Uniques/NPCs Destroyed . | . . . Combat | -11 -10 -10 -------- Run | Yrd Mat Sub Hostile Shots Fired 140 | . 52 88 Missed 41 | . 18 23 Hits 99 | . 34 65 Projectile 99 | . 34 65 Critical Strikes 3 | . . 3 Damage Taken 1847 | . 460 1387 Core 271 | . 64 207 Absorbed by Shields . | . . . Core Remaining (%) 100 | 100 . . Volleys Fired 41 | . 13 28 Largest 2 | . 2 2 Hottest 90 | . 40 90 Shots Fired 68 | . 26 42 Gun 68 | . 26 42 Cannon . | . . . Launcher . | . . . Special . | . . . Kinetic 50 | . 26 24 Thermal 18 | . . 18 Explosive . | . . . Electromagnetic . | . . . Robot Hit Streak 26 | . 6 26 Robot Miss Streak 4 | . 4 1 Penetration Max . | . . . Secondary Targets 1 | . . 1 Max Gunslinging Chain 1 | . . 1 Shots Hit Robots 51 | . 14 37 Core Hits 14 | . 1 13 Critical Kills 1 | . . 1 Critical Parts Destroyed . | . . . Critical Strikes 1 | . . 1 Destroy 1 | . . 1 Melee Attacks . | . . . Impact . | . . . Slashing . | . . . Piercing . | . . . Sneak Attacks . | . . . Combat Hostiles . | . . . Follow-up Attacks . | . . . Damage Inflicted 724 | . 140 584 Guns 724 | . 140 584 Cannons . | . . . Explosions . | . . . Melee . | . . . Ramming . | . . . Kinetic 456 | . 140 316 Thermal 268 | . . 268 Explosive . | . . . Electromagnetic . | . . . Impact . | . . . Slashing . | . . . Piercing . | . . . Highest Corruption . | . . . Average Corruption . | . . . Corruption Purged . | . . . Corruption Blocked . | . . . Overload Shots . | . . . Overflow Damage . | . . . Projectiles . | . . . Explosions . | . . . Melee . | . . . Knockbacks . | . . . Impact . | . . . Kinetic . | . . . Secondary . | . . . Self-Inflicted Damage . | . . . Shots . | . . . Rammed . | . . . Targets Rammed . | . . . Kicked . | . . . Crushed . | . . . Highest Temperature 34 | . 34 3 Average Temperature 15 | . 15 3 Received Heat Transfer 531 | . 255 276 Siege Activations . | . . . Martial Activations . | . . . Shielding Activations . | . . . Robots Disrupted . | . . . Combat Hostiles . | . . . Robots Corrupted . | . . . Combat Hostiles . | . . . Parts Fried . | . . . Impact Corruptions . | . . . Robots Melted . | . . . Combat Hostiles . | . . . Parts Melted 2 | . . 2 Heat Transferred 473 | . . 473 Parts Sabotaged . | . . . Parts Stolen . | . . . Parts Stripped . | . . . Power Chain Reactions . | . . . Alert | -11 -10 -10 ------- Run | Yrd Mat Sub Maximum Alert Level . | . . . Low Security (%) 100 | 100 100 . Level 1 . | . . . Level 2 . | . . . Level 3 . | . . . Level 4 . | . . . Level 5 . | . . . High Security . | . . . Max Security . | . . . Peak Influence 4 | . 4 . Initial . | . . . Average . | . . . Influence Increases 5 | . 5 . Successful Hack 4 | . 4 . Destroy Structure 1 | . 1 . Influence Decreases 5 | . 5 . Time Decay 5 | . 5 . Squads Dispatched . | . . . Investigation . | . . . Extermination . | . . . Reinforcement . | . . . Assault . | . . . Garrison . | . . . Intercept . | . . . Searches Triggered . | . . . Construction Impeded . | . . . Haulers Reinforced . | . . . Active Scanning Responses . | . . . Cargo Convoy Interrupts . | . . . Stealth | -11 -10 -10 --------- Run | Yrd Mat Sub Distress Signals 1 | . 1 . Communications Jammed . | . . . Distress Signals . | . . . Times Spotted 18 | . 6 12 Peak Tracking Total 7 | . 5 7 Tactical Retreats . | . . . Traps | -11 -10 -10 ------- Run | Yrd Mat Sub Traps Triggered . | . . . Indirectly . | . . . Trap Hack Attempts . | . . . Triggered . | . . . Disarmed . | . . . Reprogrammed . | . . . Reused . | . . . Traps Extracted . | . . . Installed . | . . . Triggered . | . . . Machines | -11 -10 -10 ---------- Run | Yrd Mat Sub Machines Disabled . | . . . Max in Single Turn . | . . . Machines Repaired . | . . . Machines Dismantled . | . . . Machines Sabotaged . | . . . Overloaded Fab Kills . | . . . Hacking | -11 -10 -10 --------- Run | Yrd Mat Sub Machines Accessed 2 | . 2 . Terminals 1 | . 1 . Fabricators . | . . . Repair Stations . | . . . Recycling Units 1 | . 1 . Scanalyzers . | . . . Garrison Access . | . . . Total Hacks 2 | . 2 . Successful 2 | . 2 . Failed . | . . . Catastrophic . | . . . Database Lockouts . | . . . Manual . | . . . Terminals 1 | . 1 . Fabricators . | . . . Repair Stations . | . . . Recycling Units 1 | . 1 . Scanalyzers . | . . . Garrison Access . | . . . Terminal Hacks 1 | . 1 . Locate Traps 1 | . 1 . Fabricator Hacks . | . . . Repair Station Hacks . | . . . Recycling Unit Hacks 1 | . 1 . Report Inventory 1 | . 1 . Scanalyzer . | . . . Garrison Access Hacks . | . . . Unauthorized Hacks . | . . . Terminals . | . . . Fabricators . | . . . Repair Stations . | . . . Recycling Units . | . . . Scanalyzers . | . . . Garrison Access . | . . . Data Cores Recovered . | . . . Used . | . . . Hacking Detections . | . . . Full Trace Events . | . . . Feedback Events . | . . . Feedback Blocked . | . . . Robot Schematics Acquired . | . . . Robots Built . | . . . Authchips . | . . . Time . | . . . Total Robot Build Rating . | . . . Part Schematics Acquired . | . . . Parts Built . | . . . Authchips . | . . . Time . | . . . Total Part Build Rating . | . . . Part Studies Acquired . | . . . Parts Repaired . | . . . Time . | . . . Parts Recycled . | . . . Recycled Matter . | . . . Retrieved Matter . | . . . Retrieved Components . | . . . Parts Scanalyzed . | . . . Part Schematics Acquired . | . . . Parts Damaged . | . . . Bothacking | -11 -10 -10 ------------ Run | Yrd Mat Sub Used RIF Installer . | . . . Robots Hacked . | . . . Non-combat . | . . . Combat . | . . . Robot Hacks Applied . | . . . Relay Couplers Released . | . . . Fabnet Peak Effective % . | . . . Robots Rewired . | . . . Allies Hacked . | . . . Hacks Repelled . | . . . Allies | -11 -10 -10 -------- Run | Yrd Mat Sub Total Allies . | . . . Largest Group . | . . . Highest-Rated Group . | . . . Highest-Rated Ally . | . . . Total Orders . | . . . Ally Attacks . | . . . Total Damage . | . . . Kills . | . . . Allies Corrupted . | . . . Allies Melted . | . . . Intel | -11 -10 -10 ------- Run | Yrd Mat Sub Active Infowar (turns) . | . . . Robot Analysis Total . | . . . Derelict Logs Recovered . | . . . Drone Launches . | . . . Drone Recoveries . | . . . Exploration | -11 -10 -10 ------------- Run | Yrd Mat Sub Turns Passed 1015 | 89 267 659 Spaces Moved 494 | 59 185 250 Core 6 | 3 . 3 Treads 188 | . . 188 Legs 279 | 56 185 38 Wheels 21 | . . 21 Hover . | . . . Flight . | . . . Fastest Speed 50 | 50 120 110 Average Speed 169 | 116 121 218 Slowest Speed 400 | 120 190 400 Overloaded Moves . | . . . Propulsion Burnouts . | . . . Robots Hopped . | . . . Potential Cave-ins . | . . . Cave-ins Triggered . | . . . Exploration Rate (%) 18 | 5 34 17 Regions Visited 2 Branch Regions 1 Pre-discovered Areas . | . . . Known Exits Taken . | . . . Unknown Exits Taken 2 | 1 1 . Scrap Searched . | . . . Spaces Dug . | . . . Terrain Destroyed . | . . . Melee . | . . . Projectile . | . . . AOE . | . . . Terrain Rammed . | . . . Walls Destroyed . | . . . Machines Disabled . | . . . Actions | -11 -10 -10 --------- Run | Yrd Mat Sub Total 611 | 79 204 328 Wait 16 | 5 4 7 Move 492 | 58 184 250 Hop . | . . . Pick Up 29 | 10 1 18 Fast Attach . | . . . Attach 19 | 6 2 11 Detach 1 | . . 1 Swap 2 | . . 2 Drop 7 | . . 7 Fire 41 | . 13 28 Melee . | . . . Ram . | . . . Kick . | . . . Crush . | . . . Escape Stasis . | . . . Rewire . | . . . Trap . | . . . Miscellaneous 4 | . . 4 Route ------- -11/Scrapyard -10/Materials (discovered 2 exits: [*Mat] / [*Sub]) -10/Subcaves History --------- Turn | Location | Event 12 | -11/Scrapyard | Discovered new exit (range 16) 90 | -11/Scrapyard | Entered Materials 206 | -10/Materials | Discovered new exit (range 16) 318 | -10/Materials | Build established: Mutant 338 | -10/Materials | Discovered new exit (range 15) 357 | -10/Materials | Entered Subcaves 489 | -10/Subcaves | Ambushed by swarm of Subdwellers 533 | -10/Subcaves | Core integrity fell below 50% 549 | -10/Subcaves | Lost 4 allies 549 | -10/Subcaves | Core integrity fell below 20% 593 | -10/Subcaves | Lost 8 parts (2p3n3w) 874 | -10/Subcaves | Build established: Subdweller-Mutant 1016 | -10/Subcaves | Destroyed by I6-917(R) with Subdweller Machine Gun Last Messages --------------- Acquired Sub. Power Source. Acquired Disposable Heat Sink. Acquired 20 matter. Dropped Scrap Shield Fragment. Acquired Lgt. Angular Momentum Engine. Dropped Sub. Power Source. Acquired Lgt. Angular Momentum Engine. Dropped Sub. Optics. Acquired Myomer Leg. Dropped Sub. Monowheel. Acquired Imp. Heat Sink. Dropped Disposable Heat Sink. Acquired 20 matter. Acquired Spk. Treads. Acquired 10 matter. Subatomizers dissect the Disposable Heat Sink. Acquired Sub. Machine Gun. RM-Y35(R): "ECOKILL!" RM-Y35(R) destroyed. Switching to secondary target: I6-917(R). Map ----- +----------------------------------------------------+ | ?????????????????????????????????????????????????? | | ?????????????????????????????????????????????????? | | ?????????????????????????????????????????????????? | | ?????????????????????????????????????????????????? | | ?????????????????????????????????????????????????? | | ?????????????????????????????????????????????????? | | ?????????????????????????????????????????????????? | | ?????????????????????????????????????????????????? | | ?????????????????????????????????????????????????? | | ?????????????????????????????????????????????????? | | ?????????????????????????????????????????????????? | | ??????????????????????"??????????????????????????? | | ???????????????????? ""##??????????????????????? | | ???????????????????? """"???##?????????????????? | | ????????????????????? %%&###"##????????????????? | | ????????????????????? =& ?????????????????? | | ?????????????????????? ?????????????????? | | ?????????????????????? ??????????????????? | | ??????????????????????? "" #??????????????????? | | ??????????????????????? ";;#??????????????????? | | ???????????????????????? ;;##?????????????????? | | ???????????????????????? #?????##??????????? | | ????????????????????????? ;#???## #??????????? | | ???????????????#####?????"= ;#??## #??????????? | | ???????????????# ##???##%R ;#??# ##?????????? | | ???????????????# #???#@*R #### ##????????? | | ???????????????# ##### #####????? | | ???????????????# ## ?????? | | ???????????????# ## ?####?? | | ??????????????## ?## ##? | | ??????????????# #??# ## | | ??????????????# ### #?### # | | ??????????????# ##?## ### | | ??????????????## ##?# ### | | ???????????????# ##### #??# ##?#### | | ??????????????## ##???# #### ###???##" | | ??????????????# #????# ## ##?????#" | | ??????????????# ##???### #??????### | | ??????????????## ##????##### #######????????# | | ???????????????## ##???????## ##??????????????# | | ????????????????# ##???????####???????????????? | | ????????????????# #??????????????????????????? | | ????????????????## ##?????????????????????????? | | ??????????#####??# ##????????????????????????? | | ?????????## ##?# #????????????????????????? | | ?????????# ### #????????????????????????? | | ?????????# #????????????????????????? | | ?????????# ##???????????????????????? | | ?????????# #???????????????????????? | | ?????????# #???????????????????????? | +----------------------------------------------------+ Best States ------------- Heat Dissipation 25 Energy Generation 18 Energy Capacity 250 Matter Stores 300 Matter Capacity 300 Sight Range 16 Terrain Scan Density 10 Armor Coverage 800 Evasion (%) 55 Targeting Accuracy 5 Recoil Reduction 2 Item Schematics ----------------- None Robot Schematics ------------------ None Fabricated ------------ Nothing Repaired ---------- Nothing Studied --------- None Alien Tech Used ----------------- None Achievements -------------- Survival Of The Most Covered Challenges ------------ None Game ------ Seed LongswordSubdwellerBeacon Manual? 0 Play Time 00:17:22 Cumulative 13.9 hours Start 2026.02.01 @ 12:18:03 End 2026.02.01 @ 12:35:45 Sessions 1 Manual Loads 0 Difficulty Rogue Special Mode None Game No. 4 Rogue 3 Adventurer 1 Explorer 0 Win Type - Total 0 Types 0/0/0/0/0/0/0/0/0/0 Lore% 4 Gallery% 13 Achievement% 15 Wizard Run 0 Options --------- Layout 1 ASCII 0 Keyboard 0 Movement Mouse Keybinds 0 Fullscreen 2 Font 18/Terminus Map View 50x40 Zoom Use 0% Tactical HUD 0 Map Filters NONE Filters NONE Steam 1 RUN: da32f9a9-8659-4551-acf9-38d2de2673b0